bitfinex/quotes_ETHUSD_20250726
["timestamp","ask_amount","ask_price","bid_price","bid_amount"]
[1753540055860,0.55,3735.4,3735.1,0.4959]
[1753540056048,0.55,3735.4,3735.3,2.67716113]
[1753540056232,0.63744852,3735.4,3735.3,2.67716113]
[1753540056473,0.63744852,3735.4,3735.3,3.60556113]
[1753540057580,0.63741852,3735.4,3735.3,3.60556113]
[1753540058780,1e-08,3735.4,3735.3,4.57818448]
[1753540058989,30.0,3734.6,3731.2,0.766]
[1753540059300,30.0,3734.6,3730.0,0.4325]
[1753540059301,3.0,3734.2,3732.7,3.4450259]
[1753540059501,30.0,3734.3,3732.8,0.9284]
[1753540059671,30.0,3734.1,3732.9,0.45474]
[1753540059862,33.00413776,3734.2,3734.1,2.67802147]
[1753540060059,30.0,3734.0,3733.4,0.9284]
[1753540060287,30.00413776,3733.9,3733.8,2.67823664]
[1753540060488,1e-08,3733.9,3733.8,4.37263664]
[1753540060696,1e-08,3733.9,3733.8,5.07773541]
[1753540061114,30.0,3736.1,3736.0,2.67665952]
[1753540061325,6.23203618,3736.8,3735.9,2.67673117]
[1753540061595,0.24341798,3736.7,3736.6,2.67622972]
[1753540061801,0.4998,3737.1,3736.6,2.67622972]
[1753540061802,30.24341798,3736.9,3736.8,2.67608649]
[1753540061960,0.24341798,3736.9,3736.8,2.67608649]
[1753540062163,0.443,3737.4,3736.3,0.9284]
[1753540062164,30.0,3737.2,3736.3,0.9284]
[1753540062359,0.24341798,3737.1,3737.0,2.67594327]
[1753540062565,0.24341798,3737.1,3736.8,2.67604953]
[1753540062764,30.0,3737.8,3737.1,2.67587166]
[1753540063006,30.0,3737.6,3736.8,2.67608649]
[1753540063201,0.39002987,3737.5,3736.8,2.67608649]
[1753540063498,30.0,3737.3,3736.4,0.7939]
[1753540063680,0.27054045,3737.4,3736.4,0.7939]
[1753540063681,0.39002987,3737.2,3737.1,2.67587166]
[1753540063865,30.24376867,3737.2,3737.1,2.67587166]
[1753540064073,30.39016628,3737.2,3737.1,2.67587166]
[1753540064483,0.39016628,3737.2,3737.1,2.67587166]
[1753540064681,0.24376867,3737.2,3737.1,3.58987166]
[1753540065002,0.24376867,3737.2,3737.1,3.16237166]
[1753540065201,0.24376867,3737.2,3737.1,3.10337166]
[1753540065400,0.24376867,3737.2,3737.1,3.58987166]
[1753540066102,0.24376867,3737.2,3737.1,2.67587166]
[1753540066403,0.24376867,3737.2,3737.1,2.863]
[1753540066705,0.24376867,3737.2,3737.1,5.96637166]
[1753540066881,0.24376867,3737.2,3737.1,6.45287166]
[1753540067201,0.24376867,3737.2,3737.1,6.45087166]
[1753540067701,0.39016628,3737.2,3737.1,6.45087166]
[1753540067923,0.39016628,3737.2,3737.1,6.83535685]
[1753540068422,30.0,3738.3,3738.2,2.67508426]
[1753540068572,30.0,3738.3,3737.7,2.6754147]
[1753540068769,0.6195,3738.4,3737.8,0.1336]
[1753540069078,0.55,3738.1,3737.7,2.67544211]
[1753540069275,0.55,3737.9,3737.8,2.67537053]
[1753540069498,1.0359,3737.9,3737.8,2.67537053]
[1753540069693,1.0359,3737.9,3737.5,5.52752524]
[1753540069869,1.0359,3737.9,3737.8,2.67537053]
[1753540070606,0.4608,3738.4,3738.0,2.67521613]
[1753540070607,0.55,3738.3,3738.0,2.67521613]
[1753540070782,0.55,3737.9,3737.5,2.85]
[1753540070986,0.55,3737.9,3737.8,2.67531031]
[1753540071503,0.55,3738.0,3737.9,2.67523009]
[1753540071712,0.55,3738.0,3737.9,2.05255979]
[1753540072094,0.55,3737.9,3737.8,2.6753681]
[1753540072314,0.55,3738.1,3737.9,2.67523799]
[1753540072609,0.55,3738.0,3737.9,2.67523799]
[1753540073180,0.4859,3738.5,3737.6,0.914]
[1753540073407,0.55,3738.2,3738.1,2.67515582]
[1753540073788,0.55,3738.2,3738.0,2.67521397]
[1753540074208,0.55,3738.2,3738.1,2.67515582]
[1753540076395,0.55,3738.2,3738.0,2.67520829]
[1753540077638,0.55,3738.2,3737.8,2.829]
[1753540077807,0.55,3738.2,3737.9,2.67523423]
[1753540078005,0.55,3738.2,3738.0,2.67522501]
[1753540078222,1.0359,3738.1,3737.3,0.914]
[1753540078387,1.19449,3738.1,3737.6,2.67550877]
[1753540078593,0.70859,3738.1,3737.8,2.67530968]
[1753540078794,0.55,3737.9,3737.8,2.67530968]
[1753540078994,0.55,3738.0,3737.9,2.67529261]
[1753540080224,0.55,3738.0,3737.9,3.58929261]
[1753540080623,0.55,3738.0,3737.8,2.67535959]
[1753540080843,0.55,3738.0,3737.9,2.67529896]
[1753540082417,0.001,3738.2,3738.0,2.67522739]
[1753540082744,0.001,3738.2,3738.1,2.67515582]
[1753540083026,0.001,3738.2,3738.1,7.19135582]
[1753540083332,30.0,3739.0,3738.1,5.3211988]
[1753540083509,30.1336,3739.0,3738.8,2.67463949]
[1753540083707,0.1336,3739.0,3738.7,2.6747076]
[1753540083933,0.55,3738.8,3738.6,2.812]
[1753540084132,0.55,3738.8,3738.7,2.67471937]
[1753540085434,0.55,3738.9,3738.6,2.811]
[1753540085734,0.51267178,3738.8,3738.6,2.811]
[1753540086032,0.4859,3738.7,3738.6,2.811]
[1753540086232,0.55,3738.7,3738.6,2.811]
[1753540086433,0.55,3738.7,3738.6,5.48579805]
[1753540086842,3.55,3739.4,3738.6,3.725]
[1753540087025,0.55,3739.0,3738.7,2.67466409]
[1753540087230,0.55,3739.0,3738.7,3.58866409]
[1753540087535,0.55,3739.0,3738.8,3.10214158]
[1753540087838,0.55,3739.0,3738.8,3.10214023]
[1753540088042,0.55,3739.0,3738.8,0.4275]
[1753540088429,0.55,3739.0,3738.8,2.67464306]
[1753540089442,0.1336,3739.1,3738.8,0.4275]
[1753540089611,0.55,3739.2,3739.1,2.6744174]
[1753540089810,0.55,3739.2,3739.1,0.4275]
[1753540090212,30.0,3740.3,3739.6,2.67401546]
[1753540090417,3.0,3740.2,3739.5,0.914]
[1753540090619,0.55,3740.3,3739.9,2.67386828]
[1753540090836,3.0,3739.9,3739.5,0.914]
[1753540091038,0.4859,3740.2,3739.5,0.914]
[1753540091245,3.0,3739.9,3739.6,2.67408278]
[1753540091448,0.4859,3740.2,3739.6,2.67408278]
[1753540091645,0.4859,3740.0,3739.6,2.67408278]
[1753540091945,3.0,3740.3,3739.7,2.6739506]
[1753540092153,30.4859,3740.4,3739.7,2.6739506]
[1753540092154,0.55,3740.0,3739.7,2.6739506]
[1753540092647,0.55,3740.0,3739.8,2.67388661]
[1753540092822,0.55,3740.0,3739.7,0.4304]
[1753540092823,0.55,3740.0,3739.7,3.10439836]
[1753540093328,0.55,3740.0,3739.7,2.67399836]
[1753540093947,0.55,3740.0,3739.8,2.67390368]
[1753540094557,0.55,3740.0,3739.6,0.4304]
[1753540094558,0.55,3740.0,3739.9,2.67386828]
[1753540094864,5.1903,3740.0,3737.1,0.002]
[1753540095171,35.67580006,3737.2,3737.1,0.002]
[1753540095369,39.14980006,3737.2,3737.1,0.002]
[1753540095532,36.9467,3737.2,3737.1,0.002]
[1753540095950,39.62250006,3737.2,3737.1,0.002]
[1753540096227,33.0,3737.2,3737.1,0.002]
[1753540096452,0.4727,3737.7,3737.1,0.9257]
[1753540096453,0.55,3737.4,3737.1,0.9257]
[1753540096657,3.55,3737.4,3737.1,0.9257]
[1753540096824,3.55,3737.5,3737.1,0.9257]
[1753540097029,0.55,3737.4,3737.1,0.9257]
[1753540098963,0.55,3737.4,3737.1,0.002]
[1753540098964,0.55,3737.3,3737.1,0.002]
[1753540099463,30.55,3737.2,3737.1,0.002]
[1753540099765,30.0,3736.7,3734.8,0.9237]
[1753540099930,3.0,3736.4,3734.9,0.9237]
[1753540100246,0.55,3736.4,3736.0,0.1336]
[1753540100435,0.4727,3736.3,3735.7,0.8329]
[1753540100659,0.55,3736.1,3735.7,0.1336]
[1753540100860,30.0,3736.0,3735.7,0.1336]
[1753540101039,0.55,3736.2,3735.7,2.81044332]
[1753540101357,0.55,3736.2,3735.7,1.0573]
[1753540101557,0.55,3736.2,3735.9,2.67666044]
[1753540101760,3.0,3736.6,3736.0,0.9237]
[1753540101964,0.6836,3736.8,3736.1,0.1336]
[1753540102124,0.55,3736.7,3736.5,2.67630109]
[1753540102329,0.55,3736.7,3736.6,2.67622972]
[1753540102530,0.55,3736.7,3736.3,0.1336]
[1753540103676,0.55,3736.4,3736.2,2.6764489]
[1753540103972,2.67722737,3735.3,3733.9,2.67816492]
[1753540104126,3.55,3736.2,3733.9,2.67816492]
[1753540104127,30.55,3735.1,3733.9,0.4933]
[1753540104330,0.55,3734.7,3734.4,2.67780574]
[1753540104576,3.55,3734.7,3734.4,0.002]
[1753540104932,0.55,3735.1,3734.4,0.002]
[1753540105133,0.55,3734.6,3734.4,2.67980142]
[1753540105777,0.55,3734.6,3734.5,2.67773463]
[1753540105982,0.55,3734.9,3734.4,0.4324]
[1753540106135,0.55,3734.9,3734.8,2.67751954]
[1753540106456,3.4327,3735.2,3734.6,2.67759233]
[1753540106457,0.55,3735.1,3734.6,2.67759233]
[1753540106635,0.94827,3735.1,3734.6,2.67759233]
[1753540106836,0.55,3735.0,3734.6,2.67759233]
[1753540107364,0.55,3735.1,3734.6,2.67759233]
[1753540107582,0.55,3735.1,3734.7,2.67758983]
[1753540107785,1.0227,3735.1,3734.7,2.67758983]
[1753540108085,0.4727,3735.0,3734.6,2.67765015]
[1753540108366,0.55,3734.9,3734.5,2.67772898]
[1753540108545,0.55,3734.9,3734.6,2.67766078]
[1753540108736,1.0227,3734.9,3734.6,2.67766078]
[1753540108935,1.0227,3734.9,3734.7,2.67759112]
[1753540109338,1.3146,3734.8,3734.4,0.002]
[1753540109539,0.55,3734.8,3734.4,0.002]
[1753540109738,0.55,3734.8,3734.7,2.67759123]
[1753540110235,1.489267,3734.8,3734.4,0.002]
[1753540110436,0.55,3734.6,3734.4,0.002]
[1753540110637,4.3146,3734.5,3734.4,0.002]
[1753540110837,4.7873,3734.5,3734.4,0.002]
[1753540111135,35.58626393,3734.5,3734.4,0.002]
[1753540111575,36.04176393,3734.5,3734.4,0.002]
[1753540112665,7.28296393,3734.5,3734.4,2.67980634]
[1753540112897,0.55,3734.5,3734.4,2.67980634]
[1753540113054,3.483,3734.5,3734.4,0.002]
[1753540113258,3.483,3734.5,3734.4,2.67980634]
[1753540113456,0.6836,3734.5,3734.4,2.67980634]
[1753540113663,0.6836,3734.5,3734.4,0.002]
[1753540113864,1.82043718,3734.5,3734.4,0.002]
[1753540114795,4.74943718,3734.5,3734.4,0.002]
[1753540115489,1.82043718,3734.5,3734.4,0.002]
[1753540115684,0.6836,3734.5,3734.4,2.67980634]
[1753540115857,3.6096,3734.5,3734.4,0.002]
[1753540116058,0.6836,3734.5,3734.4,0.002]
[1753540116259,3.6086,3734.5,3734.4,2.67980634]
[1753540116460,0.6836,3734.5,3734.4,0.002]
[1753540116861,3.6036,3734.5,3734.4,2.67980634]
[1753540117049,0.6836,3734.5,3734.4,2.67980634]
[1753540121106,0.6836,3734.5,3734.4,2.57980634]
[1753540122098,0.6836,3734.5,3734.4,3.02690634]
[1753540122302,0.6836,3734.5,3734.4,4.33210634]
[1753540122511,2.899,3735.1,3735.0,2.67734272]
[1753540122673,3.0326,3735.1,3735.0,2.67734272]
[1753540122872,3.0326,3735.1,3734.4,4.46570634]
[1753540122873,30.0,3735.0,3734.7,2.67752194]
[1753540123074,3.449,3735.0,3734.9,2.67744785]
[1753540124145,0.55,3735.0,3734.9,2.67744785]
[1753540124708,0.7627,3735.8,3734.9,2.67744785]
[1753540124892,0.1336,3735.3,3735.1,2.67725379]
[1753540125220,0.55,3734.6,3732.6,0.8089]
[1753540125419,2.67751622,3734.9,3732.7,0.9434]
[1753540125420,3.55,3733.9,3732.7,0.9434]
[1753540125627,0.55,3733.6,3733.5,2.67845185]
[1753540125785,0.55,3733.3,3732.8,2.81255413]
[1753540125980,0.55,3733.3,3733.2,2.67866709]
[1753540126185,0.55,3733.4,3733.3,2.67854311]
[1753540126985,1.0169,3733.4,3733.3,2.67854311]
[1753540127213,2.67873884,3733.1,3733.0,0.1336]
[1753540127519,33.44179767,3732.6,3731.0,0.02680246]
[1753540127703,34.3127,3732.6,3732.4,2.67920003]
[1753540127904,34.3127,3732.6,3731.8,0.8089]
[1753540128115,0.55,3732.6,3732.5,2.78387819]
[1753540128487,0.55,3732.6,3732.5,3.72727819]
[1753540128822,3.0,3733.6,3733.4,2.67851474]
[1753540129159,3.0,3733.6,3733.4,2.67852359]
[1753540129160,30.79604855,3733.5,3733.4,2.67852359]
[1753540129288,33.44179767,3732.6,3732.5,0.10470874]
[1753540129628,37.3257,3732.6,3732.5,0.10470874]
[1753540129784,38.24965891,3732.6,3732.5,0.10470874]
[1753540129989,30.0,3732.6,3732.5,0.10470874]
[1753540130321,0.55,3732.8,3732.7,2.67896567]
[1753540130622,0.4669,3733.6,3732.8,2.67891221]
[1753540130821,0.24624616,3733.6,3732.7,2.67900614]
[1753540130983,30.0,3733.4,3732.7,2.67901006]
[1753540131183,0.55,3732.5,3729.8,0.8089]
[1753540131421,30.0,3731.9,3730.7,0.8089]
[1753540131724,31.50277178,3731.8,3730.5,0.9434]
[1753540131925,31.476,3731.8,3731.0,2.68024307]
[1753540132218,34.0169,3731.8,3730.5,0.4471]
[1753540132518,34.0169,3731.8,3730.8,0.9434]
[1753540132724,33.55,3731.8,3731.6,2.67976639]
[1753540133024,33.55,3731.8,3731.1,0.9434]
[1753540133192,33.55,3731.8,3731.6,2.67978604]
[1753540133519,35.25994093,3731.8,3730.9,2.68029086]
[1753540133720,35.25994093,3731.8,3731.1,2.68017032]
[1753540134023,35.25994093,3731.8,3731.2,2.68008235]
[1753540134322,30.0,3731.4,3730.3,0.4963]
[1753540134625,0.7832,3731.6,3730.8,2.68037421]
[1753540134918,3.0,3731.4,3730.2,0.8312]
[1753540135122,0.7832,3732.7,3731.0,0.8312]
[1753540135441,30.0,3732.5,3731.0,0.8312]
[1753540135622,30.0,3732.3,3731.1,0.9434]
[1753540135793,30.0,3732.1,3732.0,2.6795284]
[1753540135993,3.24549147,3732.1,3732.0,2.6795284]
[1753540136194,0.24549147,3732.1,3732.0,2.6795284]
[1753540136402,30.0,3732.6,3731.7,0.4963]
[1753540136589,4.3301,3733.2,3732.7,2.67900184]
[1753540136796,30.0,3733.0,3732.2,1.7746]
[1753540137099,0.27227995,3732.9,3732.8,2.67895413]
[1753540137313,0.1336,3732.9,3732.8,2.67895413]
[1753540138426,33.0,3733.3,3733.2,2.67865221]
[1753540138623,30.24551599,3733.3,3733.2,2.67865221]
[1753540138923,30.37911599,3733.3,3733.2,2.67865221]
[1753540139122,0.37911599,3733.3,3733.2,2.67865221]
[1753540139335,0.1336,3733.3,3733.1,2.67870097]
[1753540139539,0.1336,3733.3,3733.2,2.67866709]
[1753540140104,0.1336,3733.3,3732.7,0.5807]
[1753540140105,0.4715116,3733.3,3732.7,0.1336]
[1753540140333,0.1336,3733.3,3733.1,2.67866992]
[1753540140514,0.1336,3733.3,3733.2,2.67866709]
[1753540140820,30.0,3733.2,3733.1,2.67873884]
[1753540141819,0.1336,3733.3,3733.2,2.67866709]
[1753540142870,0.1336,3733.3,3733.2,3.62206709]
[1753540143141,0.1336,3733.5,3733.4,2.67852359]
[1753540143351,0.1336,3733.5,3733.4,3.12562359]
[1753540143513,0.7781,3734.2,3733.8,2.67823664]
[1753540143713,33.0,3733.9,3733.8,2.67823664]
[1753540143922,3.0,3733.8,3733.7,2.67830023]
[1753540144134,0.1336,3733.9,3733.6,2.67836483]
[1753540144302,0.1336,3733.9,3733.4,0.9434]
[1753540144503,0.1336,3733.9,3733.5,0.4471]
[1753540144950,0.1336,3733.9,3733.5,0.9434]
[1753540145110,0.1336,3733.9,3733.6,2.67838011]
[1753540145301,0.1336,3733.9,3733.3,0.1336]
[1753540145502,0.4669,3734.5,3733.4,0.97018523]
[1753540145503,0.24589947,3734.4,3733.4,0.97018523]
[1753540145740,0.1336,3734.1,3734.0,2.67809319]
[1753540145946,0.1336,3734.2,3734.1,2.67802147]
[1753540146150,30.1336,3734.2,3734.1,2.67802147]
[1753540146309,30.1336,3734.2,3734.1,3.12512147]
[1753540146310,33.0,3734.2,3734.1,3.12512147]
[1753540146513,33.0,3734.2,3734.1,0.9434]
[1753540146715,33.0,3734.2,3734.1,3.62142147]
[1753540147321,3.0,3734.2,3734.1,3.62142147]
[1753540148150,3.0,3734.2,3734.1,0.9434]
[1753540148344,3.0,3734.2,3734.1,3.62142147]
[1753540148541,0.7485,3734.6,3734.5,2.67773463]
[1753540148851,3.0,3734.4,3734.1,3.75500517]
[1753540149055,0.8821,3734.6,3734.2,2.67792541]
[1753540149260,0.8821,3734.6,3734.3,2.67787804]
[1753540149560,0.8821,3734.6,3734.3,3.62127804]
[1753540149766,3.0,3734.5,3734.3,3.62126893]
[1753540149926,3.0,3734.4,3734.3,3.62126893]
[1753540150327,30.0,3734.5,3734.4,2.6777966]
[1753540150328,33.0,3734.5,3734.4,2.6777966]
[1753540150545,0.7485,3734.6,3734.5,2.67773463]
[1753540150860,33.7485,3734.6,3734.5,3.75473463]
[1753540151061,0.7485,3734.6,3734.5,3.75473463]
[1753540152052,0.7485,3734.6,3734.5,6.76973463]
[1753540152436,0.7485,3734.6,3734.5,6.76573463]
[1753540153629,0.7485,3734.6,3734.5,7.54283463]
[1753540157781,0.7485,3734.6,3734.5,8.23732439]
[1753540159067,0.7485,3734.6,3734.5,5.22632439]
[1753540159268,0.7485,3734.6,3734.5,5.52958976]
[1753540159471,0.7485,3734.6,3734.5,8.20732439]
[1753540159637,0.7485,3734.6,3734.5,8.20532439]
[1753540161672,0.7485,3734.6,3734.5,8.19732439]
[1753540162171,0.7485,3734.6,3734.5,5.22632439]
[1753540162372,0.7485,3734.6,3734.5,8.22410173]
[1753540162573,0.7485,3734.6,3734.5,8.19732439]
[1753540163091,0.7485,3734.6,3734.5,5.22632439]
[1753540163239,0.7485,3734.6,3734.5,8.22010173]
[1753540163436,0.7485,3734.6,3734.5,8.19332439]
[1753540164895,0.001,3735.2,3735.1,2.67730448]
[1753540165196,0.001,3735.2,3735.1,5.66707752]
[1753540165393,0.001,3735.2,3735.1,7.24597459]
[1753540165853,0.001,3735.2,3735.1,0.53547011]
[1753540166053,0.453,3735.2,3735.1,5.62830448]
[1753540166598,0.453,3735.2,3735.1,2.67730448]
[1753540167091,0.453,3735.2,3735.1,5.62730448]
[1753540167455,0.001,3735.2,3735.1,5.62730448]
[1753540167855,0.001,3735.2,3735.1,5.62630448]
[1753540168079,0.001,3735.2,3735.1,6.50068951]
[1753540168287,0.001,3735.2,3735.1,7.43228951]
[1753540169577,0.001,3735.2,3735.1,7.42828951]
[1753540169967,0.001,3735.2,3735.1,6.93178951]
[1753540170171,0.001,3735.2,3735.1,7.42828951]
[1753540170703,0.001,3735.2,3735.1,8.23358951]
[1753540172106,0.001,3735.2,3735.1,7.29098951]
[1753540172904,0.001,3735.2,3735.1,7.28898951]
[1753540173065,0.001,3735.2,3735.1,8.22558951]
[1753540174800,0.001,3735.2,3735.1,5.29658951]
[1753540174966,0.001,3735.2,3735.1,8.24936255]
[1753540175302,0.001,3735.2,3735.1,8.22258951]
[1753540175661,0.001,3735.2,3735.1,8.21158951]
[1753540175865,0.001,3735.2,3735.1,8.34518951]
[1753540177393,0.001,3735.2,3735.1,7.40858951]
[1753540178668,0.001,3735.2,3735.1,7.39658951]
[1753540179188,0.001,3735.2,3735.1,4.49358951]
[1753540179398,0.001,3735.2,3735.1,7.42336255]
[1753540179582,0.001,3735.2,3735.1,7.39658951]
[1753540179983,0.001,3735.2,3735.1,8.33318951]
[1753540181010,0.001,3735.2,3735.1,7.83668951]
[1753540181532,0.001,3735.2,3735.1,8.33318951]
[1753540182801,0.001,3735.2,3735.1,8.31918951]
[1753540183114,0.4959,3735.2,3735.1,5.69790448]
[1753540183318,0.4959,3735.2,3735.1,5.69690448]
[1753540183900,0.4959,3735.2,3735.1,2.81090448]
[1753540184096,0.9648,3735.2,3735.1,5.69590448]
[1753540184505,0.9648,3735.2,3735.1,2.81090448]
[1753540184914,0.9648,3735.2,3735.1,5.69290448]
[1753540185302,0.9648,3735.2,3735.1,2.81090448]
[1753540185503,1.14246,3735.2,3735.1,0.1336]
[1753540185703,1.14246,3735.2,3735.1,2.67730448]
[1753540186530,0.001,3735.2,3735.1,2.67730448]
[1753540186916,0.4959,3735.2,3735.1,2.67730448]
[1753540187937,0.4959,3735.2,3735.1,2.62730448]
[1753540188527,0.4959,3735.2,3735.1,5.50130448]
[1753540191036,0.001,3735.2,3735.1,5.50130448]
[1753540191439,0.4959,3735.2,3735.1,5.50130448]
[1753540193138,0.9648,3735.2,3735.1,5.48430448]
[1753540193930,0.4959,3735.2,3735.1,5.48430448]
[1753540194722,0.4959,3735.2,3735.1,2.62730448]
[1753540195048,0.4959,3735.2,3735.1,5.47630448]
[1753540195628,1.14246,3735.2,3735.0,0.1336]
[1753540195934,1.5138,3735.1,3735.0,0.1336]
[1753540196140,0.55,3735.0,3734.8,2.67750981]
[1753540196334,1.5138,3735.0,3734.8,2.67750981]
[1753540196542,1.201406,3734.9,3734.8,2.67750981]
[1753540199052,0.237606,3734.9,3734.8,2.67750981]
[1753540199231,0.55,3735.1,3735.0,2.67731506]
[1753540199633,1.0449,3735.1,3735.0,2.67731506]
[1753540200252,0.001,3735.2,3735.1,2.67730448]
[1753540200453,0.4959,3735.2,3735.1,2.67730448]
[1753540200953,0.001,3735.2,3735.1,5.50830448]
[1753540201155,0.001,3735.2,3735.1,5.94060448]
[1753540201460,0.001,3735.2,3735.1,5.50830448]
[1753540202251,0.001,3735.2,3735.0,0.1336]
[1753540202252,0.7783,3735.1,3735.0,2.67736313]
[1753540202660,0.4959,3735.2,3735.1,2.67730448]
[1753540202661,0.551,3735.2,3735.1,2.67730448]
[1753540203156,1.0459,3735.2,3735.1,2.67730448]
[1753540203360,1.24053,3735.2,3735.1,2.67730448]
[1753540204350,1.24053,3735.2,3735.0,2.67736285]
[1753540204529,0.4949,3735.1,3735.0,2.67736285]
[1753540205522,0.001,3735.2,3735.1,2.67730448]
[1753540206056,0.001,3735.2,3735.1,3.59047752]
[1753540206261,0.001,3735.2,3735.1,4.59364156]
[1753540207758,30.001,3736.0,3735.9,2.67673117]
[1753540207946,30.001,3736.0,3735.9,5.48573117]
[1753540208153,30.4959,3736.0,3735.9,5.61933117]
[1753540208333,30.001,3736.0,3735.9,5.61933117]
[1753540208660,0.001,3736.0,3735.9,5.61933117]
[1753540208966,0.55,3735.9,3735.8,2.67680282]
[1753540209170,0.4959,3736.0,3735.9,2.67673117]
[1753540209543,0.4959,3736.0,3735.9,2.57673117]
[1753540210162,30.0,3735.9,3735.7,2.9436]
[1753540210662,0.4949,3735.8,3735.7,5.62047448]
[1753540211957,0.02677178,3737.0,3735.9,2.67673117]
[1753540212266,0.4564,3737.0,3736.6,2.67622972]
[1753540212429,0.4564,3736.8,3736.6,2.67622972]
[1753540212626,0.4574,3736.7,3736.6,2.66960791]
[1753540213854,0.001,3736.7,3736.6,2.66960791]
[1753540214866,0.001,3736.7,3736.6,6.42070791]
[1753540215189,0.001,3736.7,3736.6,7.33041397]
[1753540216097,1e-08,3736.7,3736.6,7.33041397]
[1753540221363,1e-08,3736.7,3736.6,8.11731397]
[1753540222161,1e-08,3736.7,3736.6,5.45091397]
[1753540222364,1e-08,3736.7,3736.6,8.25767626]
[1753540222598,1e-08,3736.7,3736.6,8.23091397]
[1753540222975,1e-08,3736.7,3736.6,4.49981397]
[1753540223180,1e-08,3736.7,3736.6,6.3918702]
[1753540223404,1e-08,3736.7,3736.6,6.36510791]
[1753540223565,1e-08,3736.7,3736.6,3.59010791]
[1753540223770,1e-08,3736.7,3736.6,6.3928702]
[1753540224101,1e-08,3736.7,3736.6,6.36610791]
[1753540224268,1e-08,3736.7,3736.6,6.81940791]
[1753540224472,1e-08,3736.7,3736.6,7.31720791]
[1753540225489,1e-08,3736.7,3736.6,6.36610791]
[1753540225823,1e-08,3736.7,3736.6,7.31720791]
[1753540226909,1e-08,3736.7,3736.6,8.31656397]
[1753540231937,1e-08,3736.7,3736.6,11.31656397]
[1753540233471,1e-08,3737.5,3737.4,2.67565687]
[1753540233618,1e-08,3737.5,3737.4,5.42765687]
[1753540233813,0.45640001,3737.5,3737.4,5.58801343]
[1753540234080,0.45640001,3737.5,3737.4,5.56125687]
[1753540234360,0.45640001,3737.5,3737.4,2.80925687]
[1753540234652,0.45640001,3737.5,3737.4,5.58501343]
[1753540234988,1e-08,3737.5,3737.4,5.55825687]
[1753540235271,0.45640001,3737.5,3737.4,7.03393318]
[1753540235620,1e-08,3737.5,3737.4,7.03393318]
[1753540237052,0.45640001,3737.5,3737.4,3.50173318]
[1753540237256,0.45640001,3737.5,3737.4,6.24573318]
[1753540237823,1e-08,3737.5,3737.4,7.19683318]
[1753540240243,1e-08,3737.9,3737.8,2.67537053]
[1753540240574,1e-08,3737.9,3737.8,5.43712423]
[1753540240886,1e-08,3737.9,3737.8,7.29459286]
[1753540241025,1e-08,3738.2,3738.1,2.67515582]
[1753540241222,1e-08,3738.2,3738.1,5.40715582]
[1753540242037,1e-08,3738.2,3738.1,2.67515582]
[1753540242241,0.49720001,3738.2,3738.1,5.40815582]
[1753540242825,0.49720001,3738.2,3738.1,2.67515582]
[1753540243028,0.93220001,3738.2,3738.1,2.67515582]
[1753540243227,0.93220001,3738.2,3738.1,5.40715582]
[1753540243459,1e-08,3738.2,3738.1,5.40715582]
[1753540243760,0.49720001,3738.2,3738.1,6.48293319]
[1753540244066,0.49720001,3738.2,3738.1,5.40715582]
[1753540244262,1e-08,3738.2,3738.1,6.20065582]
[1753540244489,1e-08,3738.2,3738.1,7.13085582]
[1753540245076,1e-08,3738.2,3738.1,7.26445582]
[1753540245271,1e-08,3738.2,3738.1,8.52196319]
[1753540246071,1e-08,3738.2,3738.1,8.06536319]
[1753540246809,1e-08,3738.2,3738.1,7.59176319]
[1753540247008,1e-08,3738.2,3738.1,4.86376319]
[1753540247207,1e-08,3738.2,3738.1,7.61751474]
[1753540247413,1e-08,3738.2,3738.1,7.59076319]
[1753540247914,1e-08,3738.2,3738.1,7.58476319]
[1753540248367,1e-08,3738.2,3738.1,6.32325582]
[1753540248565,1e-08,3738.2,3738.1,3.60225582]
[1753540248778,1e-08,3738.2,3738.1,6.32125582]
[1753540249802,1e-08,3738.2,3738.1,2.80875582]
[1753540250097,0.93220001,3738.2,3738.1,5.52475582]
[1753540250263,0.49720001,3738.2,3738.1,2.80875582]
[1753540250459,0.93220001,3738.2,3738.1,2.80875582]
[1753540250659,0.93220001,3738.2,3738.1,5.52375582]
[1753540250864,0.93220001,3738.2,3738.1,5.52275582]
[1753540251063,0.93220001,3738.2,3738.1,2.80875582]
[1753540251480,0.93220001,3738.2,3738.1,5.52175582]
[1753540252107,0.49720001,3738.2,3738.1,5.52175582]
[1753540252408,0.93220001,3738.2,3738.1,5.52075582]
[1753540252909,0.93220001,3738.2,3738.1,2.8436]
[1753540253091,1.18159001,3738.2,3738.1,0.1336]
[1753540253269,0.55,3738.1,3737.5,2.67556646]
[1753540253466,30.0,3737.8,3737.7,0.1336]
[1753540253705,30.9322,3737.8,3737.7,0.1336]
[1753540253913,0.9322,3737.8,3737.7,0.1336]
[1753540254203,30.9322,3737.8,3737.7,0.1336]
[1753540254776,30.0,3737.7,3737.5,0.1336]
[1753540254984,30.0,3737.9,3737.5,0.1336]
[1753540255278,0.9322,3737.7,3737.5,0.1336]
[1753540255474,0.9322,3737.6,3737.5,2.80912885]
[1753540257011,2.2806,3737.6,3737.5,0.1336]
[1753540257199,0.55,3737.5,3737.2,2.67579524]
[1753540257506,1.4822,3737.5,3737.2,2.67579524]
[1753540257717,0.55,3737.5,3737.1,2.80945776]
[1753540258016,30.0,3737.3,3737.1,2.80945776]
[1753540258216,0.9322,3737.2,3737.1,2.80945776]
[1753540258418,0.9322,3737.2,3737.1,0.1336]
[1753540258790,0.9322,3737.2,3737.1,2.80947166]
[1753540259814,0.9322,3737.2,3737.1,2.75947166]
[1753540260005,0.7984,3737.6,3737.5,2.67558528]
[1753540260201,1.3484,3737.6,3737.5,2.67558528]